Cogmind - Beta 13 @@@ ROGUE MODE // 2024.04.02 @ 21:06:00 Player: engineer Result: Destroyed by Y-45 Defender with Heavy Assault Rifle Performance ------------- Evolutions (1) 500 Regions Visited (2) 400 Robots Destroyed (11) 55 Value Destroyed (210) 210 Prototype IDs (0) 0 Alien Tech Used (0) 0 Bonus (0) 0 TOTAL SCORE: 1165 Bonus ------- None Cogmind --------- Core Integrity 0/400 Matter 202/300 Energy 100/100 System Corruption 0% Temperature Cool (9) Movement Core (200) Ox3 Location -9/Materials Parts ------- > --- POWER (1) -------- (None) > --- PROPULSION (3) --- (None) > --- UTILITY (3) ------ Medium Storage Unit > --- WEAPON (2) ------- (None) > --- INVENTORY (10) --- Light Ion Engine Small Storage Unit Mining Claw Peak State ------------ > --- POWER ------------ Ion Engine > --- PROPULSION ------- Aluminum Leg Aluminum Leg > --- UTILITY ---------- Medium Storage Unit Sensor Array Signal Interpreter > --- WEAPON ----------- Small Laser Grenade Launcher > --- INVENTORY -------- Light Ion Engine Small Storage Unit Mining Claw [Rating: 8] Favorites ----------- Power Light Ion Engine Engine Light Ion Engine Propulsion Aluminum Leg Leg Aluminum Leg Utility Sensor Array Device Sensor Array Storage Small Storage Unit Processor Signal Interpreter Weapon Small Laser Energy Gun Small Laser Launcher Grenade Launcher Build | -11 -10 -9 ------- Run | Yrd Mat Mat Slots Evolved 2 | . . 2 Power . | . . . Propulsion 1 | . . 1 Utility 1 | . . 1 Weapon . | . . . Parts Attached 11 | 6 1 4 Power 2 | 1 . 1 Engine 2 | 1 . 1 Core . | . . . Reactor . | . . . Propulsion 2 | 2 . . Treads . | . . . Leg 2 | 2 . . Wheel . | . . . Hover . | . . . Flight . | . . . Utility 4 | 1 1 2 Device 1 | . 1 . Storage 2 | 1 . 1 Processor 1 | . . 1 Hackware . | . . . Protection . | . . . Artifact . | . . . Weapon 3 | 2 . 1 Energy Gun 2 | 2 . . Energy Cannon . | . . . Ballistic Gun . | . . . Ballistic Cannon . | . . . Launcher 1 | . . 1 Special Weapon . | . . . Impact Weapon . | . . . Slashing Weapon . | . . . Piercing Weapon . | . . . Special Melee Weapon . | . . . Unidentified Prototypes . | . . . Parts Lost 6 | . 1 5 Power 1 | . . 1 Propulsion 2 | . . 2 Utility . | . . . Weapon 3 | . 1 2 Highest Loss Streak 5 | . 1 5 To Critical Strikes . | . . . Average Slot Usage (%) 82 | . 91 69 Engine 12 | . 14 9 Leg 24 | . 28 19 Device 11 | . 13 7 Storage 12 | . 14 11 Processor 3 | . . 10 Energy Gun 16 | . 20 8 Launcher 1 | . . 3 Naked Turns . | . . . Heaviest Build 20 | 10 11 20 Greatest Support 20 | 20 20 20 Greatest Overweight (x) 4 | 2 . 4 Average Overweight (x) . | . . . Largest Inventory Capacity 10 | 8 8 10 Average Capacity 8 | 7 8 9 Most Carried 4 | . 3 4 Average Carried 2 | . 2 3 Final Capacity 10 | 8 8 10 Final Carried 3 | . 3 3 Class Distribution -------------------- 100% | Mutant Dominant Class ---------------- Mutant | -10/Materials Mutant | -9/Materials Resources | -11 -10 -9 ----------- Run | Yrd Mat Mat Matter Collected 277 | 221 49 7 Remotely . | . . . Salvage Created 183 | . 162 21 Parts 15 | . 8 7 Haulers Intercepted . | . . . Recyclers Shooed . | . . . Parts Field Recycled . | . . . Retrieved Matter . | . . . Parts Self-Destructed . | . . . Prevented . | . . . Kills | -11 -10 -9 ------- Run | Yrd Mat Mat Combat Hostiles Destroyed 10 | . 3 7 Guns 4 | . 3 1 AOE 6 | . . 6 Classes Destroyed 3 | . 2 1 Builder 1 | . 1 . Swarmer 7 | . . 7 Grunt 3 | . 3 . Best Kill Streak 4 | . 2 4 Combat Bots Only 4 | . 1 4 Max Kills in Single Turn 3 | . 1 3 Gunslinging . | . . . Exploded 3 | . . 3 Melee . | . . . Uniques/NPCs Destroyed . | . . . Combat | -11 -10 -9 -------- Run | Yrd Mat Mat Hostile Shots Fired 94 | . 24 70 Missed 22 | . 5 17 Damage Taken 1127 | . 260 867 Core 494 | . 81 413 Absorbed by Shields . | . . . Regen/Repaired (Parts) 18 | . . 18 Core Remaining (%) 83 | 100 67 . Volleys Fired 31 | . 19 12 Largest 2 | . 2 2 Hottest 80 | . 80 70 Shots Fired 53 | . 32 21 Gun 44 | . 32 12 Cannon . | . . . Launcher 9 | . . 9 Special . | . . . Kinetic . | . . . Thermal 44 | . 32 12 Explosive 9 | . . 9 Electromagnetic . | . . . Robot Hit Streak 8 | . 8 6 Robot Miss Streak 2 | . 2 1 Penetration Max . | . . . Secondary Targets . | . . . Shots Hit Robots 30 | . 25 5 Core Hits 20 | . 8 12 Critical Kills . | . . . Critical Parts Destroyed . | . . . Critical Strikes . | . . . Melee Attacks . | . . . Impact . | . . . Slashing . | . . . Piercing . | . . . Sneak Attacks . | . . . Combat Hostiles . | . . . Follow-up Attacks . | . . . Damage Inflicted 899 | . 299 600 Guns 332 | . 286 46 Cannons . | . . . Explosions 554 | . . 554 Melee . | . . . Ramming 13 | . 13 . Kinetic . | . . . Thermal 332 | . 286 46 Explosive 554 | . . 554 Electromagnetic . | . . . Impact . | . . . Slashing . | . . . Piercing . | . . . Highest Corruption . | . . . Average Corruption . | . . . Corruption Purged . | . . . Corruption Blocked . | . . . Overload Shots . | . . . Overflow Damage 40 | . . 40 Projectiles . | . . . Explosions 40 | . . 40 Melee . | . . . Knockbacks . | . . . Impact . | . . . Kinetic . | . . . Secondary . | . . . Self-Inflicted Damage 28 | . . 28 Shots 1 | . . 1 Rammed . | . . . Targets Rammed 3 | . 3 . Kicked 3 | . 3 . Crushed . | . . . Highest Temperature 174 | . 174 9 Average Temperature 71 | . 85 6 Received Heat Transfer 330 | . 141 189 Siege Activations . | . . . Robots Corrupted . | . . . Combat Hostiles . | . . . Parts Fried . | . . . Impact Corruptions . | . . . Robots Melted . | . . . Combat Hostiles . | . . . Parts Melted 3 | . 3 . Heat Transferred 750 | . 650 100 Parts Sabotaged . | . . . Parts Stolen . | . . . Parts Stripped . | . . . Power Chain Reactions . | . . . Alert | -11 -10 -9 ------- Run | Yrd Mat Mat Peak Influence 247 | . 90 247 Initial . | . . . Average 52 | . 38 86 Maximum Alert Level 1 | . . 1 Low Security (%) 91 | 100 100 75 Level 1 8 | . . 25 Level 2 . | . . . Level 3 . | . . . Level 4 . | . . . Level 5 . | . . . High Security . | . . . Max Security . | . . . Squads Dispatched 2 | . 2 . Investigation 1 | . 1 . Extermination . | . . . Reinforcement 1 | . 1 . Assault . | . . . Garrison . | . . . Intercept . | . . . Searches Triggered . | . . . Construction Impeded . | . . . Haulers Reinforced . | . . . Active Scanning Responses . | . . . Cargo Convoy Interrupts . | . . . Stealth | -11 -10 -9 --------- Run | Yrd Mat Mat Distress Signals 2 | . . 2 Communications Jammed . | . . . Distress Signals . | . . . Times Spotted 19 | . 6 13 Peak Tracking Total 6 | . 2 6 Tactical Retreats 1 | . 1 . Traps | -11 -10 -9 ------- Run | Yrd Mat Mat Traps Triggered 1 | . 1 . Indirectly . | . . . Trap Hack Attempts . | . . . Triggered . | . . . Disarmed . | . . . Reprogrammed . | . . . Reused . | . . . Traps Extracted . | . . . Installed . | . . . Triggered . | . . . Machines | -11 -10 -9 ---------- Run | Yrd Mat Mat Machines Disabled 2 | . . 2 Max in Single Turn 1 | . . 1 Machines Repaired . | . . . Machines Dismantled . | . . . Machines Sabotaged . | . . . Overloaded Fab Kills . | . . . Hacking | -11 -10 -9 --------- Run | Yrd Mat Mat Machines Accessed 5 | . 2 3 Terminals 4 | . 2 2 Fabricators . | . . . Repair Stations 1 | . . 1 Recycling Units . | . . . Scanalyzers . | . . . Garrison Access . | . . . Total Hacks 19 | . 6 13 Successful 7 | . . 7 Failed 12 | . 6 6 Catastrophic 2 | . 1 1 Database Lockouts . | . . . Manual 6 | . 3 3 Terminals 15 | . 6 9 Fabricators . | . . . Repair Stations 4 | . . 4 Recycling Units . | . . . Scanalyzers . | . . . Garrison Access . | . . . Terminal Hacks 5 | . . 5 Locate Traps 2 | . . 2 Dispatch Records 1 | . . 1 Reinforcement Status 1 | . . 1 Security Stations 1 | . . 1 Fabricator Hacks . | . . . Repair Station Hacks 2 | . . 2 Scan Component 1 | . . 1 Repair 1 | . . 1 Recycling Unit Hacks . | . . . Scanalyzer . | . . . Garrison Access Hacks . | . . . Unauthorized Hacks . | . . . Terminals . | . . . Fabricators . | . . . Repair Stations . | . . . Recycling Units . | . . . Scanalyzers . | . . . Garrison Access . | . . . Data Cores Recovered . | . . . Used . | . . . Hacking Detections 5 | . 2 3 Full Trace Events . | . . . Feedback Events . | . . . Feedback Blocked . | . . . Robot Schematics Acquired . | . . . Robots Built . | . . . Authchips . | . . . Time . | . . . Total Robot Build Rating . | . . . Part Schematics Acquired . | . . . Parts Built . | . . . Authchips . | . . . Time . | . . . Total Part Build Rating . | . . . Parts Repaired 1 | . . 1 Time 26 | . . 26 Parts Recycled . | . . . Recycled Matter . | . . . Retrieved Matter . | . . . Retrieved Components . | . . . Parts Scanalyzed . | . . . Part Schematics Acquired . | . . . Parts Damaged . | . . . Bothacking | -11 -10 -9 ------------ Run | Yrd Mat Mat Used RIF Installer . | . . . Robots Hacked . | . . . Non-combat . | . . . Combat . | . . . Robot Hacks Applied . | . . . Relay Couplers Released . | . . . Fabnet Peak Effective % . | . . . Robots Rewired . | . . . Allies Hacked . | . . . Hacks Repelled . | . . . Allies | -11 -10 -9 -------- Run | Yrd Mat Mat Total Allies . | . . . Largest Group . | . . . Highest-Rated Group . | . . . Highest-Rated Ally . | . . . Total Orders . | . . . Ally Attacks . | . . . Total Damage . | . . . Kills . | . . . Allies Corrupted . | . . . Allies Melted . | . . . Intel | -11 -10 -9 ------- Run | Yrd Mat Mat Robot Analysis Total . | . . . Derelict Logs Recovered . | . . . Drone Launches . | . . . Drone Recoveries . | . . . Exploration | -11 -10 -9 ------------- Run | Yrd Mat Mat Turns Passed 759 | 53 442 264 Spaces Moved 442 | 39 248 155 Core 16 | 5 . 11 Treads . | . . . Legs 426 | 34 248 144 Wheels . | . . . Hover . | . . . Flight . | . . . Fastest Speed 50 | 50 120 120 Average Speed 122 | 113 120 127 Slowest Speed 250 | 150 120 250 Overloaded Moves . | . . . Propulsion Burnouts . | . . . Robots Hopped . | . . . Cave-ins Triggered . | . . . Exploration Rate (%) 20 | 3 40 18 Regions Visited 2 Branch Regions . Pre-discovered Areas . | . . . Known Exits Taken . | . . . Unknown Exits Taken 2 | 1 1 . Scrap Searched . | . . . Spaces Dug . | . . . Terrain Destroyed 28 | . . 28 Melee . | . . . Projectile . | . . . AOE 28 | . . 28 Terrain Rammed . | . . . Walls Destroyed . | . . . Machines Disabled . | . . . Actions | -11 -10 -9 --------- Run | Yrd Mat Mat Total 602 | 44 359 199 Wait 112 | . 86 26 Move 440 | 38 247 155 Hop . | . . . Pick Up 5 | . 3 2 Fast Attach 7 | 6 1 . Attach 2 | . . 2 Detach . | . . . Swap 2 | . . 2 Drop . | . . . Fire 31 | . 19 12 Melee . | . . . Ram . | . . . Kick 3 | . 3 . Crush . | . . . Escape Stasis . | . . . Rewire . | . . . Trap . | . . . Miscellaneous . | . . . Route ------- -11/Scrapyard -10/Materials -9/Materials History --------- Turn | Location | Event 11 | -11/Scrapyard | Discovered new exit (range 16) 54 | -11/Scrapyard | Entered Materials 276 | -10/Materials | Discovered new exit (range 8) 304 | -10/Materials | Build established: Mutant 496 | -10/Materials | Entered another Materials area 496 | -9/Materials | Evolved 2 slots: Propulsion x1, Utility x1 696 | -9/Materials | Repaired Sensor Array 741 | -9/Materials | Core integrity fell below 50% 755 | -9/Materials | Core integrity fell below 20% 760 | -9/Materials | Destroyed by Y-45 Defender with Heavy Assault Rifle Last Messages --------------- 00733_ U-05 Engineer lays Concrete. Open spaces previously occupied by now-destroyed walls and earth have a slight glow to them. Consecutive moves through these unstable areas may cause a cave-in, but only if doing so for extended periods. Tunneling a short distance between rooms is safe unless the area was destabilized by an explosion. 00735_ U-05 Engineer lays Concrete. 00740_ Critical hit (Burn: +37). 00740_ U-05 Engineer lays Concrete. 00743_ U-05 Engineer builds a Wall. 00744_ U-05 Engineer lays Concrete. 00746_ Signal Interpreter severed. 00746_ U-05 Engineer lays Concrete. 00751_ G-34 Mercenary destroyed. 00752_ U-05 Engineer lays Concrete. 00757_ L-31 Rogue destroyed. 00758_ U-05 Engineer builds a Wall. 00760_ The unstable cave ceiling collapses. Map ----- +----------------------------------------------------+ | ?????????????????????????????????????????????????? | | ?????????????????????????????????????????????????? | | ?????????????????????????????????????????????????? | | ?????????????????????????????????????????????????? | | ?????????????????????????????????????????????????? | | ?????????????????????????????????????????????????? | | ?????????????????????????????????????????????????? | | ?????????????????????????????????????????????????? | | ?????????????????????????????????????????????????? | | ??????????????? ??????????????????????????????? | | ???????????? ??????????????????????????????? | | ?????????? #?????????????????????????????? | | ?????????? #?????????????????????????????? | | ??????????# #?????????????????????????????? | | ##????????# #?????????????????????????????? | | "#????????# #?????????????????????????????? | | "#????????# ######????????????????????????? | | "#????????# ##"""#????????????????????????? | | ##????????# ##"R"#????????????????????????? | | ??????????# ##"!"######???????????????????? | | ########### # #???????????????????? | | ^ # #???????????????????? | | ^ ^ # #???????????????????? | | ^ ^ # u "" #???????????????????? | | [* + =%/ " #???????????????????? | | == # *@ #???????????????????? | | """ " " #u Y% #???????????????????? | | """ = "" T # u #???????????????????? | | """ "" " # # #+######?????????????????? | | #% ??????????? | | # # ??????????? | | ###############+##### # #?????????????? | | ?????????????? ???##### #?????????????? | | #????????????? //??????? + ???????????? | | #???????????? // ??????#+##### #### ???????????? | | #???????????? // ????????????? #????????????????? | | #??????????? ?????????????#????????????????? | | #??????????? ??????????????????????????????? | | #??????????# ] ?????????????????????????????? | | #?????????? ?????????????????????????????? | | #??????????# #????????????????????????????? | | #??????????####+#####????????????????????????????? | | #????????????????????????????????????????????????? | | #????????????????????????????????????????????????? | | ?????????????????????????????????????????????????? | | ?????????????????????????????????????????????????? | | ?????????????????????????????????????????????????? | | ?????????????????????????????????????????????????? | | ?????????????????????????????????????????????????? | | ?????????????????????????????????????????????????? | +----------------------------------------------------+ Best States ------------- Heat Dissipation 28 Energy Generation 10 Energy Capacity 250 Matter Stores 300 Matter Capacity 300 Sight Range 16 Robot Scan Range 14 Terrain Scan Density 10 Evasion (%) 55 Item Schematics ----------------- None Robot Schematics ------------------ None Fabricated ------------ Nothing Alien Tech Used ----------------- None Achievements -------------- None Challenges ------------ None Game ------ Seed CannonHeavyInverter Manual? 0 Play Time 00:11:19 Cumulative 2.7 hours Start 2024.04.02 @ 20:56:03 End 2024.04.02 @ 21:06:00 Sessions 1 Manual Loads 0 Difficulty Rogue Special Mode None Game No. 10 Rogue 10 Adventurer 0 Explorer 0 Win Type - Total 0 Types 0/0/0/0/0/0/0/0/0 Lore% 2 Gallery% 3 Achievement% 5 Wizard Run 0 Options --------- Layout 1 ASCII 0 Keyboard 0 Movement Mouse Keybinds 0 Fullscreen 1 Font 32/SmallcapsGlow Map View 50x35 Zoom Use 0% Tactical HUD 1 Map Filters NONE Filters NONE Steam 1 RUN: 0533b0fb-419c-46e3-aadd-eebbd6aa074a